[Event "98th Caplin Hastings Masters 2024-25"]
[Site "Hastings"]
[Date "2024.12.28"]
[Round "1.18"]
[White "Waldhausen Gordon, Frederick"]
[Black "Abrahams, Daniel"]
[Result "1-0"]
[ECO "D37"]
[WhiteElo "2355"]
[BlackElo "2072"]
[Annotator "TA"]
[PlyCount "63"]
[EventDate "2024.12.23"]
[EventType "swiss"]
[EventCountry "ENG"]
[SourceTitle "playchess.com"]
[Source "ChessBase"]
[SourceQuality "1"]
[TimeControl "5400+30"]

{[%evp 14,63,8,17,12,12,14,6,23,23,21,21,20,17,14,12,13,20,14,-5,0,-6,0,-11,-19,-21,-18,-15,-5,-10,0,-18,48,9,0,6,64,61,230,220,539,229,223,225,737,732,656,714,714,287,689,675]} 1. d4 {[%emt 0:00:02]} Nf6 {[%emt 0:00:09]} 2. c4 {[%emt 0:00:02]} e6 {[%emt 0:00:07]} 3. Nc3 {[%emt 0:00:05]} d5 {[%emt 0:00:12]} 4. Nf3 {[%emt 0:00:28]} Be7 {[%emt 0:00:07]} 5. Bf4 {[%emt 0:00:53]} O-O {[%emt 0:00:12]} 6. e3 {[%emt 0:00:05]} Nbd7 {[%emt 0:00:24]} 7. c5 {[%emt 0:01:37]} c6 {[%emt 0:00:07]} 8. h3 {[%emt 0:01:03]} b6 {[%emt 0:00:17]} 9. b4 {[%emt 0:00:04]} a5 {[%emt 0:00:07]} 10. a3 {[%emt 0:00:05]} h6 {[%emt 0:00:10] The position is equal.} 11. Bd3 {[%emt 0:00:46]} Ba6 {[%emt 0:00:24] And now ...Bxd3 would win.} 12. O-O {[%emt 0:01:56]} Qc8 {[%emt 0:01:08]} 13. Qe2 {[%emt 0:09:47]} Bxd3 {[%emt 0:01:10]} 14. Qxd3 {[%emt 0:00:08]} Qb7 {[%emt 0:00:11]} 15. Qc2 {[%emt 0:05:49]} Rfc8 {[%emt 0:00:37]} 16. g4 {[%emt 0:02:21]} Bd8 {[%emt 0:07:05]} 17. Kh1 {[%emt 0:05:17]} Bc7 {[%emt 0:01:55]} 18. g5 {[%emt 0:06:58]} hxg5 {[%emt 0:13:07]} 19. Bxg5 {[%emt 0:01:36]} axb4 {[%emt 0:00:09]} 20. axb4 {[%emt 0:00:07]} Rxa1 {[%emt 0:00:08]} 21. Rxa1 {[%emt 0:00:27]} Ra8 {[%emt 0:00:27]} 22. Rg1 {[%emt 0:02:17]} Kf8 {[%emt 0:00:15]} (22... bxc5 $11 23. bxc5 Ra3) 23. Bh4 {[%emt 0:03:07] Hoping for Ng5.} bxc5 {[%emt 0:01:58]} 24. bxc5 {[%emt 0:02:23] Ng5 would now be deadly.} Ra3 {[%emt 0:00:42]} (24... Kg8 $11) 25. Ng5 $1 $14 {[%emt 0:12:53][%cal Og5f7] Black must now prevent Nxf7!} Kg8 {[%emt 0:03:29] [#] This costs Black the game.} (25... Qb3 $14 26. Nh7+ Ke8 27. Nxf6+ Nxf6 (27... gxf6 $2 28. Rg8+ Ke7 29. Qh7 $18) 28. Qxb3 Rxb3 29. Rxg7 Bd8) 26. Nxf7 $1 $18 {[%emt 0:04:45][%cal Oc2g6][%mdl 512] White threatens Qg6! and mate.} Qa8 $2 {[%emt 0:17:19] [#]} (26... Qc8 {is a better chance.} 27. Nb1 (27. Qg6 Qf8 $18) 27... Ra1) (26... Qb8 27. Nb1) 27. Qg6 {[%emt 0:06:18]} Qf8 {[%emt 0:00:14]} 28. Ng5 $40 {[%emt 0:00:31][%mdl 128] Black is in trouble.} ({Don't do} 28. Bxf6 Nxf6 29. Ng5 (29. Qxf6 Qxf7 30. Qxf7+ Kxf7 $11) 29... Qe8 (29... Rxc3 $2 30. Nxe6 Qf7 31. Qxg7+ Qxg7 32. Rxg7+ Kh8 33. Rxc7 $18) 30. Qxe8+ (30. Nxe6 Qxg6 31. Rxg6 Kf7 $16) 30... Nxe8) 28... Rxc3 $2 {[%emt 0:01:48]} (28... Qe8 29. Qxe8+ (29. Nxe6 Qxg6 30. Rxg6 Kf7 $14) 29... Nxe8) 29. Nxe6 {[%emt 0:00:09]} Qf7 {[%emt 0:00:08]} 30. Qxg7+ {[%emt 0:00:16]} (30. Nxc7 Qxg6 31. Rxg6 Kf7 $11) 30... Qxg7 {[%emt 0:00:07]} 31. Rxg7+ {[%emt 0:00:04]} Kh8 {[%emt 0:00:06]} 32. Bxf6 {[%emt 0:00:08] Weighted Error Value: White=0.38/Black=0.43.  Loses game:     	---       	Black=1      Mistake:       	White=1     	Black=4      Inaccurate:     	White=1     	---        OK:         	White=7     	Black=5      Best:        	White=1     	Black=2      Strong:       	White=1     	---} 1-0

[Event "98th Caplin Hastings Masters 2024-25"]
[Site "Hastings"]
[Date "2024.12.28"]
[Round "1.19"]
[White "Zhang, Junyi"]
[Black "Siva Mahadevan"]
[Result "0-1"]
[ECO "C58"]
[WhiteElo "2070"]
[BlackElo "2349"]
[Annotator "TA"]
[PlyCount "66"]
[EventDate "2024.12.23"]
[EventType "swiss"]
[EventCountry "ENG"]
[SourceTitle "playchess.com"]
[Source "ChessBase"]
[SourceQuality "1"]
[TimeControl "5400+30"]

{[%evp 14,66,18,13,44,33,28,22,33,21,44,37,19,40,32,0,10,7,0,10,7,5,0,0,14,8,5,8,0,0,6,7,8,-156,-181,-200,-197,-185,-113,-128,-134,-110,-111,-183,-148,-282,-270,-366,-380,-350,-346,-1264,-1263,-1131,-1067]} 1. e4 {[%emt 0:00:05]} e5 {[%emt 0:00:14]} 2. Nf3 {[%emt 0:00:02]} Nc6 {[%emt 0:00:10]} 3. Bc4 {[%emt 0:00:06]} Nf6 {[%emt 0:00:16]} 4. Ng5 {[%emt 0:00:07]} d5 {[%emt 0:00:16]} 5. exd5 {[%emt 0:00:32]} Na5 {[%emt 0:00:11]} 6. Bb5+ {[%emt 0:00:51]} c6 {[%emt 0:00:10]} 7. dxc6 {[%emt 0:00:00]} bxc6 {[%emt 0:00:07]} 8. Bd3 {[%emt 0:00:00]} Nd5 {[%emt 0:00:50]} 9. Nf3 {[%emt 0:00:42]} (9. Nxh7 $2 Nf4 10. Be4 Rxh7 $19) 9... Bd6 {[%emt 0:00:15]} 10. O-O {[%emt 0:00:50]} O-O {[%emt 0:00:14] The position is equal.} 11. Re1 {[%emt 0:00:55][%cal Oc2c3]} f5 {[%emt 0:00:23]} 12. Nxe5 {[%emt 0:00:22]} Qf6 $1 {[%emt 0:00:08]} 13. Nf3 {[%emt 0:00:09] Strongly threatening Bf1.} g5 $1 {[%emt 0:00:07]} 14. c4 {[%emt 0:00:19][%cal Bc2c4,Bc4c5][%mdl 32]} (14. g3 $5) 14... Nf4 {[%emt 0:00:09]} 15. Bf1 {[%emt 0:00:05] Black must now prevent d4.} g4 {[%emt 0:00:06][%cal Of4e6]} 16. d4 {[%emt 0:00:04]} gxf3 {[%emt 0:00:09]} 17. Qxf3 {[%emt 0:00:05]} Ne6 {[%emt 0:00:07]} (17... Qxd4 $2 18. Rd1 $18 (18. c5 Bc7 $11) (18. c5 Bc7 $11)) 18. Qc3 {[%emt 0:00:41]} Nb7 {[%emt 0:00:17]} 19. c5 {[%emt 0:01:13]} Bc7 $132 {[%emt 0:00:05][%mdl 2048] Black has counterplay} 20. b4 {[%emt 0:00:24]} a5 {[%emt 0:00:16] ...axb4 would now be deadly.} (20... Qxd4 $6 21. Qxd4 Nxd4 22. Bc4+ $16) (20... Nxd4 $2 21. Bb2 Rd8 22. Bc4+ Kf8 (22... Kh8 $2 23. Nd2 $18) 23. Nd2 $16) 21. b5 {[%emt 0:25:55]} cxb5 {[%emt 0:00:20]} (21... Qxd4 $6 22. Bc4 Qxc3 (22... Qxc5 $2 23. Bb2 $18) 23. Nxc3 $16) (21... Nxd4 $2 22. Bb2 Rd8 (22... Be5 $2 23. Rxe5 Qxe5 24. Bc4+ Kg7 25. Qxd4 $18) 23. Na3 $16) 22. Bxb5 {[%emt 0:01:26]} a4 {[%emt 0:00:10][%cal Of5f4]} (22... Qxd4 23. Bc4 Rd8 (23... Qxc5 $2 24. Bb2 $18) (23... Qxc3 24. Nxc3 Nbxc5 25. Ba3 $16) 24. Bg5 (24. Bxe6+ Bxe6 25. Bg5 Nxc5 $17) 24... Nbxc5 25. Bxd8 Qxc3 26. Nxc3) 23. Rd1 $2 {[%emt 0:24:03] [#]} (23. Bc4 $11) 23... Nbxc5 $1 {[%emt 0:05:05][%mdl 512] Black is more active.} 24. dxc5 {[%emt 0:07:26] [#] Hoping for Qxf6.} (24. Bc4 Rd8) 24... Be5 {[%emt 0:00:20]} 25. Qf3 {[%emt 0:00:05]} Rb8 {[%emt 0:42:52]} (25... Bxa1 26. Qxa8 Nxc5 27. Ba3 $18 (27. Bxa4 Be6 $16)) (25... Ra5 $19 {[%cal Oa5b5]} 26. Nc3 Bxc3) 26. Na3 $17 {[%emt 0:02:43] Rb1 is the strong threat.} Rxb5 {[%emt 0:01:17]} (26... Bxa1 $2 27. Qg3+ (27. Bxa4 $2 Kh8 $19) 27... Kh8 28. Qxb8 $16) 27. Nxb5 {[%emt 0:00:27]} Bxa1 {[%emt 0:00:06]} 28. c6 {[%emt 0:02:21]} (28. Bd2 $17) 28... Be5 $19 {[%emt 0:04:22]} 29. Ba3 {[%emt 0:10:46]} (29. h3 $17) 29... Rd8 {[%emt 0:06:01]} 30. Rxd8+ {[%emt 0:01:47]} Qxd8 {[%emt 0:00:10]} (30... Nxd8 31. Qd5+ Kg7 32. c7 Bxc7 33. Qd2 $19) 31. g3 {[%emt 0:00:21]} Qd2 {[%emt 0:06:09]} 32. Qe3 {[%emt 0:02:28] Inhibits Ng5.} (32. Qh5 Ng7 (32... Qxa2 33. Qe8+ Kg7 34. Qxc8 $11) (32... Qe1+ $2 33. Kg2 $19) 33. Qf3) 32... Qd1+ {[%emt 0:00:14]} ({Stronger than} 32... Qxa2 33. Qxe5 Ba6 34. Qb8+ (34. Qxf5 Bxb5 35. Qxb5 Qxa3 $17) 34... Kg7 35. Qa7+ Kg6 36. Qxa6 $16) 33. Kg2 {[%emt 0:00:27]} Qd5+ {[%emt 0:00:04] Weighted Error Value: White=0.48/Black=0.06 (flawless) .  Mistake:       	White=4     	Black=1      Inaccurate:     	White=1     	---        OK:         	White=12    	Black=13     Best:        	White=2     	Black=3      Strong:       	---       	Black=2} 0-1

[Event "98th Caplin Hastings Masters 2024-25"]
[Site "Hastings"]
[Date "2024.12.28"]
[Round "1.20"]
[White "Roux, Baptiste"]
[Black "Byron, Alan M"]
[Result "1-0"]
[ECO "B10"]
[WhiteElo "2338"]
[BlackElo "2069"]
[Annotator "TA"]
[PlyCount "77"]
[EventDate "2024.12.23"]
[EventType "swiss"]
[EventCountry "ENG"]
[SourceTitle "playchess.com"]
[Source "ChessBase"]
[SourceQuality "1"]
[TimeControl "5400+30"]

{[%evp 9,77,11,37,23,40,24,18,17,33,45,29,6,31,14,36,10,54,58,47,50,51,52,81,44,81,64,84,58,64,56,127,126,129,61,160,155,160,135,179,122,133,118,112,95,93,78,140,147,162,138,157,168,163,167,174,187,185,179,529,529,550,538,545,550,575,572,569,568,560,554]} 1. e4 {[%emt 0:00:06]} c6 {[%emt 0:00:09]} 2. d3 {[%emt 0:01:01]} d5 {[%emt 0:01:29]} 3. Bf4 {[%emt 0:00:27]} e6 {[%emt 0:03:22]} 4. Nf3 {[%emt 0:05:16]} Ne7 {[%emt 0:04:26]} 5. Nbd2 {[%emt 0:01:13]} Nd7 {[%emt 0:02:27]} 6. d4 {[%emt 0:01:18]} a6 {[%emt 0:03:00]} 7. Bd3 {[%emt 0:15:09]} c5 {[%emt 0:06:40]} 8. c4 {[%emt 0:15:48]} cxd4 {[%emt 0:08:51]} 9. exd5 {[%emt 0:02:52]} ({But not} 9. Nxd4 e5 10. exd5 exf4 $17 (10... exd4 11. O-O $11)) 9... Nc5 {[%emt 0:05:52]} 10. Bb1 {[%emt 0:03:35]} exd5 {[%emt 0:02:31]} 11. O-O {[%emt 0:08:30]} (11. Nxd4 $5 Ne6 12. Nxe6 Bxe6 13. O-O $14) 11... Ng6 {[%emt 0:13:55]} 12. Bg3 {[%emt 0:09:55]} Ne6 {[%emt 0:02:50]} 13. cxd5 {[%emt 0:10:03]} Qxd5 {[%emt 0:00:07]} 14. Be4 {[%emt 0:00:16]} Qd8 {[%emt 0:01:17]} 15. Nb3 {[%emt 0:02:02]} d3 {[%emt 0:14:43]} 16. Bxd3 {[%emt 0:03:14]} Be7 {[%emt 0:00:12]} 17. Qc2 $36 {[%emt 0:01:09][%mdl 2048] White has some pressure.} O-O {[%emt 0:02:10]} 18. Rad1 {[%emt 0:00:47]} Qb6 $1 {[%emt 0:00:39]} 19. Ne5 {[%emt 0:04:23][%cal Bf3e5,Be5c4,Bc4d6][%mdl 32]} Bf6 {[%emt 0:05:40]} (19... Nc5 $14) 20. Nc4 $16 {[%emt 0:00:28]} Qa7 {[%emt 0:00:13][%cal Oa6a5]} 21. Be4 {[%emt 0:02:10]} (21. Rfe1 $16) 21... Nd4 {[%emt 0:07:03]} (21... a5 $14) 22. Nxd4 {[%emt 0:02:25]} Bxd4 {[%emt 0:00:03]} 23. Nd6 {[%emt 0:01:09] aiming for Bd5. White is much more active. The black rooks are passive.} Qb6 {[%emt 0:06:16]} 24. Rd2 {[%emt 0:02:21]} (24. Bd5 $18) 24... Be6 {[%emt 0:01:45] Inhibits Qc4.} 25. Rfd1 {[%emt 0:01:20]} Bf6 {[%emt 0:00:54]} 26. Nxb7 {[%emt 0:02:00]} Rac8 {[%emt 0:01:08] Prevents Qc5} 27. Qb1 {[%emt 0:00:05]} Bg5 {[%emt 0:01:31]} (27... Bg4 $142) 28. Rd6 {[%emt 0:00:47]} Qb4 {[%emt 0:01:22][%cal Oe6a2]} 29. R6d4 {[%emt 0:02:03]} Qxd4 {[%emt 0:01:52]} 30. Rxd4 {[%emt 0:00:02]} Rc1+ {[%emt 0:00:06] [#]} 31. Qxc1 $3 {[%emt 0:01:42]} Bxc1 {[%emt 0:00:02][%cal Bg5c1,Bc1b2,Bb2c3][%mdl 32]} 32. b3 {[%emt 0:00:06]} f5 {[%emt 0:00:34][%cal Bf7f5,Bf5f4][%mdl 32]} 33. Nc5 $1 {[%emt 0:00:38][%csl LRa6,LRe6]} Bxb3 $2 {[%emt 0:03:14]} (33... Bb2) 34. Nxb3 $18 {[%emt 0:00:27]} Bb2 {[%emt 0:00:22][%cal Ob2d4]} 35. Bd5+ {[%emt 0:00:11]} Kh8 {[%emt 0:00:01]} 36. Rd2 {[%emt 0:00:37]} Rd8 {[%emt 0:01:03]} 37. f3 {[%emt 0:01:40]} f4 {[%emt 0:00:28]} 38. Bf2 {[%emt 0:00:35]} Bc3 {[%emt 0:00:35]} 39. Rd3 {[%emt 0:00:18]} 1-0

[Event "98th Caplin Hastings Masters 2024-25"]
[Site "Hastings"]
[Date "2024.12.28"]
[Round "1.21"]
[White "Bharat Kumar, Balahari"]
[Black "Lucas, Arthur"]
[Result "0-1"]
[ECO "D20"]
[WhiteElo "2063"]
[BlackElo "2335"]
[Annotator "TA"]
[PlyCount "84"]
[EventDate "2024.12.23"]
[EventType "swiss"]
[EventCountry "ENG"]
[SourceTitle "playchess.com"]
[Source "ChessBase"]
[SourceQuality "1"]
[TimeControl "5400+30"]

{[%evp 9,84,31,66,24,36,17,22,29,40,20,17,0,7,-11,1,-6,0,-16,0,0,0,-64,-67,-77,-70,-63,-48,-114,0,0,0,-56,-54,-44,-53,-64,-66,-72,-33,-46,-43,-64,-63,-74,-64,-66,-79,-91,-81,-104,-117,-107,-122,-152,-88,-144,-141,-461,-455,-564,-574,-617,-608,-1366,-1292,-4786,-4694,-5591,-5106,-29982,-29983,-29983,-29984,-29984,-29985,-29986,-29987]} 1. d4 {[%emt 0:00:09]} d5 {[%emt 0:00:11]} 2. c4 {[%emt 0:00:06]} dxc4 {[%emt 0:00:06]} 3. e3 {[%emt 0:00:25]} e5 {[%emt 0:00:08]} 4. Bxc4 {[%emt 0:01:15]} Nc6 {[%emt 0:00:07]} 5. Nf3 {[%emt 0:04:32]} e4 {[%emt 0:00:06]} 6. Nfd2 {[%emt 0:11:21]} (6. Qb3 $5 Nh6 7. Nfd2 $14) 6... Qg5 {[%emt 0:00:05]} 7. Kf1 {[%emt 0:08:47]} f5 {[%emt 0:10:17]} 8. Nc3 {[%emt 0:05:10] The position is equal.} Bd6 {[%emt 0:02:58]} 9. h4 {[%emt 0:12:33]} Qe7 {[%emt 0:02:56]} 10. a3 {[%emt 0:05:21]} Nf6 {[%emt 0:01:50]} 11. b4 {[%emt 0:04:54]} Nd8 {[%emt 0:19:43]} 12. Bb2 {[%emt 0:05:58]} Be6 {[%emt 0:03:20]} 13. Rc1 {[%emt 0:03:17]} O-O {[%emt 0:02:06]} 14. g3 {[%emt 0:03:08]} a5 {[%emt 0:04:27]} 15. Qb3 {[%emt 0:07:49]} (15. Bxe6+ $11 Qxe6 (15... Nxe6 16. bxa5 Bxa3 17. Bxa3 $14) 16. b5) 15... axb4 $15 {[%emt 0:02:26]} 16. axb4 {[%emt 0:00:24]} Bxb4 {[%emt 0:08:32]} 17. Bxe6+ {[%emt 0:03:51]} Nxe6 {[%emt 0:00:02]} 18. d5 {[%emt 0:07:04]} (18. Kg2 $15) 18... Rad8 {[%emt 0:08:22] Black is more active.} ({Black should play} 18... Bxc3 $17 19. Rxc3 Nc5) 19. Ndb1 $11 {[%emt 0:07:21]} Bxc3 {[%emt 0:05:45]} 20. Ba3 {[%emt 0:02:03]} (20. Nxc3 $11 Nc5 21. d6+ Qe6 (21... Nxb3 22. dxe7 Nxc1 23. exd8=R $16) 22. Qxe6+ Nxe6 23. dxc7 Nxc7 24. Nxe4) 20... Nc5 $15 {[%emt 0:02:41]} 21. Qxc3 {[%emt 0:02:54]} b6 {[%emt 0:00:32]} (21... Nxd5 $2 {perishes.} 22. Bxc5 (22. Qxc5 Qe6 $18) 22... Qe6 23. Qb2 $18) 22. Bxc5 {[%emt 0:00:40]} bxc5 {[%emt 0:00:19]} 23. Qxc5 {[%emt 0:00:34]} Rf7 {[%emt 0:06:05]} 24. Qxe7 {[%emt 0:01:58]} Rxe7 {[%emt 0:00:01]} 25. Nc3 {[%emt 0:00:45]} Nxd5 {[%emt 0:00:34]} 26. Rd1 {[%emt 0:00:38]} Red7 {[%emt 0:01:16]} 27. Nxd5 {[%emt 0:00:08]} Rxd5 {[%emt 0:00:06]} 28. Rxd5 {[%emt 0:00:05]} Rxd5 {[%emt 0:00:03][%mdl 4096] Endgame. KR-KR} 29. Kg2 {[%emt 0:00:39]} Kf7 {[%emt 0:02:01]} 30. Ra1 {[%emt 0:00:58]} Ke6 {[%emt 0:00:34]} 31. Ra8 {[%emt 0:00:35]} Rd7 {[%emt 0:05:23]} (31... c5 $142 32. h5 h6) 32. Ra6+ {[%emt 0:00:21]} (32. Kf1 $142) 32... Kd5 $17 {[%emt 0:00:26] ...c5 would now be deadly.} 33. Ra5+ {[%emt 0:00:11][%mdl 8192] Now White is beyond hope.} (33. Ra7 $17) 33... c5 $19 {[%emt 0:00:13]} 34. h5 {[%emt 0:01:02]} Kc4 {[%emt 0:00:30]} 35. Ra8 {[%emt 0:00:31]} Kd3 {[%emt 0:03:48] [#] White must now prevent ...c4.} 36. Rc8 {[%emt 0:00:30]} c4 {[%emt 0:00:23]} 37. Kf1 {[%emt 0:00:29]} c3 {[%emt 0:00:49]} 38. Ke1 {[%emt 0:00:20]} c2 {[%emt 0:02:01] ( -> ...Rb7)} 39. Rc6 {[%emt 0:00:33]} Rb7 {[%emt 0:00:10][%cal Rb7b1] Black mates.} 40. Rd6+ {[%emt 0:00:30]} Kc3 {[%emt 0:00:03]} 41. Rc6+ {[%emt 0:00:10]} Kb2 {[%emt 0:00:05]} 42. Kd2 {[%emt 0:00:38] [#]} c1=Q+ $1 {[%emt 0:02:18][%mdl 512] Weighted Error Value: White=0.81/Black=0.11 (very precise) .  Loses game:     	White=1     	---        Mistake:       	White=4     	Black=2      Inaccurate:     	White=1     	Black=1      OK:         	White=7     	Black=8      Best:        	---       	Black=6} 0-1

[Event "98th Caplin Hastings Masters 2024-25"]
[Site "Hastings"]
[Date "2024.12.28"]
[Round "1.22"]
[White "Lux, Hugo de Melo"]
[Black "Gorainow, Nikita"]
[Result "1/2-1/2"]
[ECO "B23"]
[WhiteElo "2327"]
[BlackElo "2045"]
[Annotator "RC"]
[PlyCount "46"]
[EventDate "2024.12.23"]
[EventType "swiss"]
[EventCountry "ENG"]
[SourceTitle "playchess.com"]
[Source "ChessBase"]
[SourceQuality "1"]
[TimeControl "5400+30"]

1. e4 {[%emt 0:00:03]} c5 {[%emt 0:00:09]} 2. Nc3 {[%emt 0:00:06]} e6 {[%emt 0:00:15]} 3. f4 {[%emt 0:08:19]} d5 {[%emt 0:02:53]} 4. Nf3 {[%emt 0:00:06]} dxe4 {[%emt 0:01:52]} 5. Nxe4 {[%emt 0:00:08]} Nc6 {[%emt 0:00:07]} 6. b3 {[%emt 0:17:22]} Be7 {[%emt 0:04:04]} 7. Bb2 {[%emt 0:01:42]} Nf6 {[%emt 0:00:09]} 8. Qe2 {[%emt 0:00:23]} O-O {[%emt 0:03:58]} 9. g3 {[%emt 0:05:35]} b6 {[%emt 0:11:37]} 10. Bg2 {[%emt 0:08:28]} Bb7 {[%emt 0:02:27]} 11. Ne5 {[%emt 0:13:31]} Nxe5 {[%emt 0:31:05]} 12. Nxf6+ {[%emt 0:01:53]} Bxf6 {[%emt 0:07:19]} 13. fxe5 {[%emt 0:00:29]} Bxg2 {[%emt 0:00:08]} 14. Qxg2 {[%emt 0:02:57]} Bg5 {[%emt 0:02:40]} 15. h4 {[%emt 0:00:34]} Be7 {[%emt 0:00:06]} 16. O-O {[%emt 0:02:31]} Qd5 {[%emt 0:00:34]} 17. Rf3 {[%emt 0:00:57]} Rad8 {[%emt 0:00:19]} 18. d3 {[%emt 0:01:13]} f5 {[%emt 0:06:08]} 19. h5 {[%emt 0:07:24]} b5 {[%emt 0:01:23]} 20. a4 {[%emt 0:08:44]} c4 {[%emt 0:07:56]} 21. axb5 {[%emt 0:02:15]} cxd3 {[%emt 0:07:35]} 22. c4 {[%emt 0:04:45]} Qe4 {[%emt 0:00:44]} 23. Rf4 {[%emt 0:00:26]} d2 {[%emt 0:03:25]} 1/2-1/2

[Event "98th Caplin Hastings Masters 2024-25"]
[Site "Hastings"]
[Date "2024.12.28"]
[Round "1.23"]
[White "Burrows, Martin P"]
[Black "Boswell, Jacob Connor"]
[Result "0-1"]
[ECO "B32"]
[WhiteElo "2042"]
[BlackElo "2277"]
[Annotator "ChessBase"]
[PlyCount "138"]
[EventDate "2024.12.23"]
[EventType "swiss"]
[EventCountry "ENG"]
[SourceTitle "playchess.com"]
[Source "ChessBase"]
[SourceQuality "1"]
[TimeControl "5400+30"]

1. e4 {[%emt 0:00:05]} c5 {[%emt 0:00:06]} 2. Nf3 {[%emt 0:00:06]} Nc6 {[%emt 0:00:03]} 3. d4 {[%emt 0:01:07]} cxd4 {[%emt 0:00:07]} 4. Nxd4 {[%emt 0:00:04]} e5 {[%emt 0:00:07]} 5. Nb5 {[%emt 0:00:14]} d6 {[%emt 0:00:09]} 6. c4 {[%emt 0:00:26]} Be6 {[%emt 0:00:37]} 7. N1c3 {[%emt 0:00:21]} a6 {[%emt 0:00:08]} 8. Na3 {[%emt 0:00:16]} g6 {[%emt 0:01:32]} 9. Be2 {[%emt 0:01:21]} Nf6 {[%emt 0:01:32]} 10. Bg5 {[%emt 0:05:32]} Bg7 {[%emt 0:03:26]} 11. Nc2 {[%emt 0:01:24]} O-O {[%emt 0:06:22]} 12. O-O {[%emt 0:05:31]} Rc8 {[%emt 0:14:55]} 13. b3 {[%emt 0:11:27]} Qa5 {[%emt 0:20:12]} 14. Bd2 {[%emt 0:04:15]} Qc7 {[%emt 0:03:19]} 15. Rc1 {[%emt 0:01:29]} Qb8 {[%emt 0:03:34]} 16. f3 {[%emt 0:04:48]} Nh5 {[%emt 0:19:49]} 17. Be3 {[%emt 0:03:44]} Nf4 {[%emt 0:01:27]} 18. Nd5 {[%emt 0:05:42]} Nxe2+ {[%emt 0:05:32]} 19. Qxe2 {[%emt 0:00:12]} Bxd5 {[%emt 0:07:59]} 20. exd5 {[%emt 0:07:41]} Ne7 {[%emt 0:00:17]} 21. Bb6 {[%emt 0:00:34]} Bh6 {[%emt 0:02:55]} 22. Rcd1 {[%emt 0:00:38]} Rce8 {[%emt 0:00:46]} 23. a4 {[%emt 0:07:09]} Nc8 {[%emt 0:00:53]} 24. Be3 {[%emt 0:03:16]} Bxe3+ {[%emt 0:00:17]} 25. Nxe3 {[%emt 0:00:13]} Qc7 {[%emt 0:01:50]} 26. b4 {[%emt 0:07:33]} a5 {[%emt 0:01:05]} 27. Rb1 {[%emt 0:00:36]} Nb6 {[%emt 0:00:20]} 28. bxa5 {[%emt 0:16:33]} Nxa4 {[%emt 0:00:03]} 29. Qd2 {[%emt 0:00:18]} Ra8 {[%emt 0:00:53]} 30. Rb5 {[%emt 0:00:24]} Ra7 {[%emt 0:00:38]} 31. f4 {[%emt 0:01:32]} Qe7 {[%emt 0:03:56]} 32. fxe5 {[%emt 0:02:18]} Qxe5 {[%emt 0:00:46]} 33. Ng4 {[%emt 0:00:01]} Qc3 {[%emt 0:00:01]} 34. Qf2 {[%emt 0:04:24]} Nc5 {[%emt 0:01:02]} 35. Nf6+ {[%emt 0:02:27]} Kg7 {[%emt 0:00:33]} 36. Ne8+ {[%emt 0:00:47]} Kg8 {[%emt 0:00:41]} 37. Nf6+ {[%emt 0:02:31]} Kh8 {[%emt 0:01:08]} 38. Qh4 {[%emt 0:00:24]} Qe3+ {[%emt 0:00:00]} 39. Kh1 {[%emt 0:00:08]} h6 {[%emt 0:00:00]} 40. Ng4 {[%emt 0:01:06]} Qg5 {[%emt 0:00:00]} 41. Qxg5 {[%emt 0:01:21]} hxg5 {[%emt 0:00:00]} 42. Re1 {[%emt 0:00:53]} Rfa8 {[%emt 0:00:23]} 43. h3 {[%emt 0:00:32]} Rxa5 {[%emt 0:00:52]} 44. Rb6 {[%emt 0:00:26]} Ra1 {[%emt 0:00:49]} 45. Rxa1 {[%emt 0:00:01]} Rxa1+ {[%emt 0:00:03]} 46. Kh2 {[%emt 0:00:05]} Ra6 {[%emt 0:00:07]} 47. Rb1 {[%emt 0:00:38]} Kg7 {[%emt 0:00:11]} 48. Ne3 {[%emt 0:00:15]} f5 {[%emt 0:01:50]} 49. Nc2 {[%emt 0:00:10]} Kf6 {[%emt 0:00:50]} 50. Nd4 {[%emt 0:00:35]} Ra4 {[%emt 0:00:41]} 51. Rb6 {[%emt 0:01:20]} Ra6 {[%emt 0:00:19]} 52. Rb1 {[%emt 0:00:12]} Ke5 {[%emt 0:00:38]} 53. Nb5 {[%emt 0:01:03]} Ke4 {[%emt 0:00:38]} 54. Re1+ {[%emt 0:00:19]} Kd3 {[%emt 0:00:05]} 55. Nc7 {[%emt 0:00:46]} Rb6 {[%emt 0:00:43]} 56. Re6 {[%emt 0:00:29]} Kxc4 {[%emt 0:00:36]} 57. Rxg6 {[%emt 0:00:06]} Ne4 {[%emt 0:00:08]} 58. Ne6 {[%emt 0:01:04]} Kxd5 {[%emt 0:01:03]} 59. Nxg5 {[%emt 0:00:02]} Rb3 {[%emt 0:00:22]} 60. Nf7 {[%emt 0:00:53]} Rc3 {[%emt 0:00:23]} 61. h4 {[%emt 0:00:39]} Rc7 {[%emt 0:00:17]} 62. Nh6 {[%emt 0:00:07]} Ke5 {[%emt 0:00:24]} 63. g3 {[%emt 0:00:51]} b5 {[%emt 0:00:15]} 64. Rg8 {[%emt 0:00:05]} Rb7 {[%emt 0:01:02]} 65. Rf8 {[%emt 0:00:14]} b4 {[%emt 0:00:38]} 66. Rxf5+ {[%emt 0:00:02]} Ke6 {[%emt 0:00:34]} 67. Rf1 {[%emt 0:00:17]} b3 {[%emt 0:00:06]} 68. Ng4 {[%emt 0:01:50]} b2 {[%emt 0:00:08]} 69. Rb1 {[%emt 0:00:15]} Nd2 {[%emt 0:00:22]} 0-1